bitfinex/quotes_SOLUSD_20260202
["timestamp","ask_amount","ask_price","bid_price","bid_amount"]
[1770007105424,4.11251529,101.55,101.51,9.70898224]
[1770007105644,4.11251529,101.54,101.5,9.70898224]
[1770007106029,4.11251529,101.54,101.51,9.70898224]
[1770007106337,4.11251529,101.52,101.47,9.70898224]
[1770007106529,4.11251529,101.51,101.47,9.70898224]
[1770007106727,13.82149753,101.53,101.48,9.70898224]
[1770007107043,13.82149753,101.52,101.47,9.70898224]
[1770007107644,4.11251529,101.52,101.47,9.70898224]
[1770007107942,13.82149753,101.52,101.47,9.70898224]
[1770007108327,4.11251529,101.5,101.46,9.70898224]
[1770007109848,4.11251529,101.49,101.45,9.70898224]
[1770007110421,4.11251529,101.51,101.47,9.70898224]
[1770007110843,13.82149753,101.53,101.48,9.70898224]
[1770007111024,4.11251529,101.53,101.49,9.70898224]
[1770007111623,4.11251529,101.55,101.5,9.70898224]
[1770007111835,4.11251529,101.55,101.5,8.20898224]
[1770007112039,13.82149753,101.53,101.48,9.70898224]
[1770007113428,4.11251529,101.53,101.49,9.70898224]
[1770007114134,13.82149753,101.53,101.48,9.70898224]
[1770007115049,4.11251529,101.51,101.47,9.70898224]
[1770007115343,13.82149753,101.51,101.46,9.70898224]
[1770007116036,9.70898224,101.5,101.45,12.75833842]
[1770007116233,13.82149753,101.51,101.46,9.70898224]
[1770007116436,4.11251529,101.48,101.44,9.70898224]
[1770007116635,13.82149753,101.48,101.43,9.70898224]
[1770007118030,14.17253778,101.47,101.42,12.75833842]
[1770007118236,14.17253778,101.45,101.4,9.70898224]
[1770007118438,14.17253778,101.45,101.39,12.75833842]
[1770007118641,14.17253778,101.44,101.39,12.75833842]
[1770007118834,4.46355554,101.43,101.38,9.70898224]
[1770007119037,4.46355554,101.43,101.38,12.75833842]
[1770007120449,14.17253778,101.47,101.42,9.70898224]
[1770007120650,4.46355554,101.46,101.42,9.70898224]
[1770007120853,14.17253778,101.48,101.43,9.70898224]
[1770007121042,14.17253778,101.47,101.42,9.70898224]
[1770007122754,4.46355554,101.46,101.41,9.70898224]
[1770007123054,4.46355554,101.45,101.41,9.70898224]
[1770007123253,4.46355554,101.45,101.4,12.75833842]
[1770007123455,4.46355554,101.45,101.41,9.70898224]
[1770007125553,14.17253778,101.47,101.42,9.70898224]
[1770007125736,4.46355554,101.46,101.42,9.70898224]
[1770007125939,14.17253778,101.44,101.39,12.75833842]
[1770007126748,14.17253778,101.42,101.37,12.75833842]
[1770007126955,4.46355554,101.42,101.38,9.70898224]
[1770007127250,4.46355554,101.42,101.38,12.75833842]
[1770007127457,14.17253778,101.42,101.38,3.04935618]
[1770007127640,4.47637024,101.41,101.37,9.70898224]
[1770007127960,4.47637024,101.41,101.37,12.75833842]
[1770007128338,4.47637024,101.41,101.36,9.90898224]
[1770007128540,4.47637024,101.41,101.36,12.95833842]
[1770007128954,4.47637024,101.41,101.37,9.70898224]
[1770007129140,9.70898224,101.42,101.37,12.75833842]
[1770007129342,4.47637024,101.43,101.39,9.70898224]
[1770007129546,14.18535248,101.43,101.38,9.70898224]
[1770007130137,14.18535248,101.42,101.37,12.75833842]
[1770007130563,4.47637024,101.41,101.37,9.70898224]
[1770007131139,4.47637024,101.4,101.36,9.90898224]
[1770007132259,4.47637024,101.4,101.37,9.70898224]
[1770007132665,4.47637024,101.4,101.36,9.90898224]
[1770007134473,4.47637024,101.42,101.38,9.70898224]
[1770007134976,11.03505982,101.43,101.4,9.70898224]
[1770007135355,11.03505982,101.43,101.39,9.70898224]
[1770007135856,11.03505982,101.43,101.41,9.70898224]
[1770007136054,4.5,101.49,101.42,9.70898224]
[1770007136278,4.5,101.49,101.45,9.70898224]
[1770007136760,4.5,101.49,101.46,9.70898224]
[1770007137162,4.5,101.49,101.45,9.70898224]
[1770007138374,4.5,101.49,101.46,9.70898224]
[1770007138773,4.5,101.47,101.43,9.70898224]
[1770007139781,4.5,101.47,101.44,9.70898224]
[1770007140165,4.5,101.47,101.43,9.70898224]
[1770007140476,4.5,101.44,101.4,9.70898224]
[1770007140661,4.5,101.42,101.38,9.70898224]
[1770007140862,4.5,101.45,101.41,9.70898224]
[1770007141080,6.53409907,101.5,101.44,9.70898224]
[1770007141081,4.5,101.49,101.44,9.70898224]
[1770007141290,4.5,101.49,101.39,4.27527085]
[1770007141291,11.03409907,101.5,101.47,9.70898224]
[1770007141778,4.5,101.48,101.44,9.70898224]
[1770007142084,4.5,101.47,101.43,9.70898224]
[1770007142376,4.5,101.46,101.42,9.70898224]
[1770007142555,4.5,101.46,101.43,9.70898224]
[1770007144177,4.5,101.46,101.38,0.14216157]
[1770007144178,4.5,101.46,101.42,9.70898224]
[1770007144382,4.5,101.44,101.4,9.70898224]
[1770007144573,14.20898224,101.44,101.39,9.70898224]
[1770007145774,4.5,101.44,101.41,9.70898224]
[1770007146364,4.5,101.44,101.4,9.70898224]
[1770007147678,9.70898224,101.43,101.38,9.70898224]
[1770007147861,4.5,101.4,101.36,9.90898224]
[1770007148064,4.5,101.39,101.36,0.2]
[1770007148280,4.5,101.37,101.34,9.70898224]
[1770007148575,4.5,101.38,101.35,9.70898224]
[1770007149581,4.27527085,101.43,101.29,27.59527085]
[1770007149582,4.5,101.4,101.37,9.70898224]
[1770007149970,4.5,101.42,101.38,9.70898224]
[1770007150274,4.5,101.41,101.37,9.70898224]
[1770007150482,4.5,101.4,101.36,9.70898224]
[1770007150785,4.5,101.41,101.38,9.70898224]
[1770007151283,4.5,101.43,101.4,9.70898224]
[1770007151604,4.5,101.43,101.39,9.70898224]
[1770007152266,4.5,101.42,101.38,9.70898224]
[1770007152960,4.5,101.42,101.39,9.70898224]
[1770007154081,4.5,101.41,101.37,9.70898224]
[1770007154277,4.5,101.4,101.36,9.70898224]
[1770007154584,4.5,101.42,101.39,9.70898224]
[1770007155585,4.5,101.42,101.34,23.3]
[1770007155586,4.5,101.43,101.4,9.70898224]
[1770007156667,4.5,101.42,101.34,23.3]
[1770007156880,4.5,101.42,101.38,9.70898224]
[1770007158166,4.5,101.44,101.41,9.70898224]
[1770007158466,4.5,101.44,101.4,9.70898224]
[1770007159976,4.5,101.43,101.39,9.70898224]
[1770007160386,4.5,101.41,101.37,9.70898224]
[1770007161690,4.5,101.41,101.39,9.70898224]
[1770007162869,4.5,101.41,101.34,23.3]
[1770007163071,4.5,101.41,101.39,9.70898224]
[1770007163690,4.5,101.43,101.4,9.70898224]
[1770007164367,4.5,101.43,101.4,9.72594877]
[1770007165572,108.5,101.44,101.41,9.72594877]
[1770007166096,4.5,101.46,101.43,9.72594877]
[1770007166266,4.5,101.48,101.45,9.72594877]
[1770007166616,4.5,101.47,101.39,23.28]
[1770007166784,4.5,101.43,101.3,49.76770501]
[1770007166972,4.5,101.42,101.38,9.72594877]
[1770007167166,4.5,101.41,101.37,9.72594877]
[1770007167570,14.22594877,101.41,101.36,9.72594877]
[1770007167791,4.5,101.4,101.36,9.72594877]
[1770007168097,4.5,101.43,101.39,9.72594877]
[1770007168392,4.5,101.4,101.33,23.28]
[1770007168595,4.5,101.4,101.36,9.72594877]
[1770007170487,14.22594877,101.42,101.37,9.72594877]
[1770007170691,4.5,101.41,101.38,9.72594877]
[1770007170903,4.5,101.41,101.37,9.72594877]
[1770007173100,4.5,101.4,101.36,9.72594877]
[1770007173403,4.5,101.4,101.32,27.53527085]
[1770007173404,9.72594877,101.4,101.35,9.72594877]
[1770007173576,4.5,101.39,101.35,9.72594877]
[1770007175900,4.5,101.41,101.37,9.72594877]
[1770007176419,4.5,101.4,101.36,9.72594877]
[1770007177006,4.5,101.39,101.35,9.72594877]
[1770007177215,4.5,101.38,101.34,9.72594877]
[1770007178609,4.5,101.4,101.37,9.72594877]
[1770007178813,4.5,101.4,101.36,9.72594877]
[1770007179122,4.5,101.4,101.37,9.72594877]
[1770007179404,4.5,101.42,101.38,9.72594877]
[1770007179908,4.5,101.42,101.39,9.72594877]
[1770007180204,79.5678528,101.52,101.33,0.28432314]
[1770007180205,11.03409907,101.5,101.42,0.28432314]
[1770007180389,11.03409907,101.5,101.47,19.98566608]
[1770007181107,11.03409907,101.5,101.48,9.72594877]
[1770007181304,4.5,101.49,101.47,8.21035195]
[1770007181495,4.5,101.49,101.44,13.95996754]
[1770007181684,4.5,101.49,101.45,9.72594877]
[1770007182299,4.07254624,101.47,101.42,13.95996754]
[1770007182496,4.07254624,101.46,101.42,13.95996754]
[1770007183101,4.07254624,101.48,101.44,9.72594877]
[1770007183712,4.07254624,101.46,101.42,13.95996754]
[1770007184008,4.07254624,101.44,101.38,4.23401877]
[1770007184197,4.07254624,101.41,101.37,9.72594877]
[1770007185610,4.07254624,101.41,101.38,9.72594877]
[1770007186183,13.79849501,101.43,101.38,9.72594877]
[1770007186414,4.07254624,101.43,101.39,9.72594877]
[1770007188606,4.07254624,101.43,101.4,9.72594877]
[1770007189498,4.16926333,101.42,101.37,9.72594877]
[1770007189701,4.16926333,101.41,101.37,9.72594877]
[1770007190095,4.16926333,101.39,101.35,9.72594877]
[1770007190317,4.16926333,101.47,101.39,4.38966448]
[1770007190516,4.16926333,101.47,101.43,9.72594877]
[1770007190889,4.16926333,101.46,101.42,9.72594877]
[1770007191110,4.16926333,101.46,101.43,9.72594877]
[1770007194121,10.80936992,101.5,101.45,14.11561325]
[1770007194122,10.7033624,101.5,101.45,14.11561325]
[1770007194314,10.7033624,101.5,101.47,9.72594877]
[1770007194615,6.53409907,101.5,101.48,9.72594877]
[1770007194819,6.53409907,101.5,101.47,14.11561325]
[1770007195213,6.53409907,101.5,101.48,9.72594877]
[1770007195596,6.53409907,101.5,101.49,9.72594877]
[1770007195817,0.1,101.52,101.49,9.72594877]
[1770007196008,0.1,101.52,101.51,9.72594877]
[1770007196407,4.16926333,101.51,101.46,9.72594877]
[1770007196593,4.16926333,101.5,101.46,9.72594877]
[1770007197112,4.16926333,101.49,101.44,9.72594877]
[1770007197313,4.16926333,101.48,101.44,9.72594877]
[1770007198290,4.16926333,101.47,101.43,9.72594877]
[1770007199314,4.16926333,101.46,101.42,9.72594877]
[1770007199916,4.16926333,101.45,101.41,9.72594877]
[1770007200617,4.16926333,101.45,101.42,9.72594877]
[1770007200920,4.16926333,101.45,101.41,9.72594877]
[1770007201500,4.16926333,101.45,101.4,13.64494702]
[1770007201822,13.8952121,101.47,101.42,9.72594877]
[1770007202009,4.16926333,101.46,101.41,13.64494702]
[1770007202210,13.8952121,101.46,101.41,13.64494702]
[1770007202416,4.16926333,101.46,101.41,13.64494702]
[1770007202802,4.16926333,101.43,101.39,9.72594877]
[1770007203010,4.16926333,101.4,101.36,9.72594877]
[1770007203894,4.16926333,101.39,101.33,3.91899825]
[1770007204093,4.16926333,101.38,101.34,9.72594877]
[1770007204422,4.16926333,101.38,101.33,3.91899825]
[1770007204603,4.16926333,101.38,101.33,13.64494702]
[1770007205107,4.16926333,101.38,101.34,9.72594877]
[1770007206704,9.72594877,101.38,101.33,3.91899825]
[1770007206911,4.16926333,101.37,101.33,9.72594877]
[1770007208024,4.44611423,101.41,101.36,9.72594877]
[1770007208234,4.44611423,101.41,101.38,9.72594877]
[1770007208424,4.44611423,101.43,101.39,9.72594877]
[1770007208628,4.44611423,101.43,101.4,9.72594877]
[1770007209126,4.44611423,101.46,101.42,9.72594877]
[1770007209334,45.7462525,101.59,101.45,9.72594877]
[1770007209335,4.44611423,101.48,101.45,9.72594877]
[1770007209502,4.44611423,101.5,101.46,9.72594877]
[1770007209698,4.44611423,101.5,101.47,9.72594877]
[1770007210424,4.44611423,101.5,101.46,9.72594877]
[1770007210929,4.44611423,101.48,101.43,9.72594877]
[1770007211127,4.44611423,101.47,101.43,9.72594877]
[1770007211429,4.44611423,101.46,101.41,9.72594877]
[1770007211805,4.44611423,101.46,101.41,13.64494702]
[1770007212008,27.42,101.5,101.4,9.72594877]
[1770007212009,14.172063,101.45,101.4,9.72594877]
[1770007212309,4.44611423,101.44,101.4,9.72594877]
[1770007213119,4.44611423,101.43,101.39,9.72594877]
[1770007213319,4.44611423,101.44,101.4,9.72594877]
[1770007214512,4.44611423,101.43,101.38,13.64494702]
[1770007214824,14.172063,101.43,101.38,13.64494702]
[1770007215327,4.44611423,101.43,101.39,9.72594877]
[1770007215629,4.44611423,101.43,101.38,13.64494702]
[1770007215820,14.172063,101.43,101.38,13.64494702]
[1770007216022,4.44611423,101.43,101.38,13.64494702]
[1770007217242,4.44611423,101.4,101.36,9.72594877]
[1770007217412,4.44611423,101.4,101.35,9.72594877]
[1770007217736,14.172063,101.42,101.37,9.72594877]
[1770007218042,4.44611423,101.4,101.35,9.72594877]
[1770007218910,4.44611423,101.42,101.36,13.64494702]
[1770007219244,4.44611423,101.41,101.37,9.72594877]
[1770007219540,4.44611423,101.42,101.38,9.72594877]
[1770007219913,4.44611423,101.42,101.39,9.72594877]
[1770007220422,4.44611423,101.42,101.37,3.91899825]
[1770007220423,4.44611423,101.42,101.37,13.64494702]
[1770007221138,4.44611423,101.42,101.38,9.72594877]
[1770007221434,4.44611423,101.42,101.37,13.64494702]
[1770007221625,14.172063,101.42,101.37,13.64494702]
[1770007221814,4.44611423,101.42,101.37,13.64494702]
[1770007222019,4.44611423,101.42,101.38,9.72594877]
[1770007222446,4.44611423,101.42,101.37,13.64494702]
[1770007222737,4.44611423,101.42,101.38,9.72594877]
[1770007223715,4.44611423,101.42,101.37,3.91899825]
[1770007223916,14.172063,101.42,101.37,13.64494702]
[1770007224214,4.44611423,101.42,101.37,13.64494702]
[1770007224521,4.44611423,101.43,101.38,13.64494702]
[1770007224732,4.44611423,101.43,101.39,9.72594877]
[1770007225033,4.44611423,101.42,101.37,9.72594877]
[1770007225235,4.44611423,101.42,101.38,9.72594877]
[1770007226240,14.172063,101.42,101.37,13.64494702]
[1770007226540,4.44611423,101.41,101.36,13.65101832]
[1770007226835,4.44611423,101.41,101.37,9.73202007]
[1770007227019,4.44611423,101.42,101.37,13.65101832]
[1770007227728,4.44611423,101.42,101.38,9.73202007]
[1770007227924,14.1781343,101.44,101.39,9.73202007]
[1770007228136,4.44611423,101.44,101.4,9.73202007]
[1770007229035,4.44611423,101.44,101.39,13.65101832]
[1770007229758,4.44611423,101.42,101.38,9.73202007]
[1770007229929,4.44611423,101.42,101.37,13.65101832]
[1770007230942,4.44611423,101.42,101.35,23.16]
[1770007230943,4.44611423,101.44,101.39,13.65101832]
[1770007231315,4.44611423,101.42,101.38,9.73202007]
[1770007231539,14.1781343,101.42,101.37,13.65101832]
[1770007232143,4.44611423,101.42,101.37,13.65101832]
[1770007232526,4.44611423,101.42,101.38,9.73202007]
[1770007233135,4.44611423,101.42,101.37,13.65101832]
[1770007233647,4.44611423,101.42,101.38,9.73202007]
[1770007234644,4.44611423,101.4,101.36,9.73202007]
[1770007234941,4.44611423,101.4,101.36,13.65101832]
[1770007235152,4.44611423,101.4,101.37,9.73202007]
[1770007237922,4.44611423,101.4,101.36,13.65101832]
[1770007238128,4.44611423,101.4,101.37,9.73202007]
[1770007238328,104.0,101.41,101.38,13.65101832]
[1770007238528,104.0,101.41,101.38,9.73202007]
[1770007238728,108.39441085,101.41,101.38,9.73202007]
[1770007239041,108.39441085,101.41,101.37,13.65101832]
[1770007239228,4.39441085,101.4,101.36,13.65101832]
[1770007239649,4.39441085,101.4,101.36,10.40790612]
[1770007240750,9.73202007,101.4,101.35,9.73202007]
[1770007240931,4.39441085,101.39,101.35,9.73202007]
[1770007241252,4.39441085,101.39,101.35,13.65101832]
[1770007241446,4.39441085,101.39,101.36,9.73202007]
[1770007241673,4.39441085,101.39,101.35,13.65101832]
[1770007242150,9.73202007,101.4,101.36,13.65101832]
[1770007242151,4.39441085,101.4,101.36,13.65101832]
[1770007245241,4.39441085,101.4,101.36,3.91899825]
[1770007245434,4.39441085,101.4,101.36,13.65101832]
[1770007245654,4.39441085,101.39,101.35,9.73202007]
[1770007246155,176.43202007,101.41,101.35,14.07675927]
[1770007246956,176.43202007,101.41,101.36,4.27021785]
[1770007247264,62.7,101.41,101.37,4.27021785]
[1770007247437,9.73202007,101.44,101.39,4.27021785]
[1770007247961,9.73202007,101.43,101.37,14.00223792]
[1770007248163,4.389357,101.42,101.37,14.00223792]
[1770007248458,4.389357,101.43,101.39,4.27021785]
[1770007249263,4.389357,101.42,101.39,4.27021785]
[1770007250142,4.389357,101.42,101.38,9.73202007]
[1770007250343,4.389357,101.42,101.38,4.27021785]
[1770007252060,4.389357,101.41,101.36,4.27021785]
[1770007252256,4.27527085,101.44,101.35,4.27021785]
[1770007252257,4.389357,101.39,101.35,4.27021785]
[1770007253151,4.389357,101.39,101.32,4.47527085]
[1770007253152,4.389357,101.41,101.37,4.27021785]
[1770007253747,4.389357,101.4,101.36,4.27021785]
[1770007254562,4.389357,101.4,101.36,14.00223792]
[1770007254757,4.389357,101.4,101.32,4.47527085]
[1770007254758,4.389357,101.42,101.37,14.00223792]
[1770007254962,14.12137707,101.44,101.38,9.73202007]
[1770007255162,4.389357,101.43,101.39,4.27021785]
[1770007255660,4.389357,101.43,101.39,4.11021785]
[1770007256452,4.389357,101.42,101.37,9.73202007]
[1770007256841,9.73202007,101.43,101.37,9.73202007]
[1770007257044,4.389357,101.43,101.38,9.65202007]
[1770007257444,4.389357,101.43,101.39,9.73202007]
[1770007257667,4.389357,101.43,101.39,14.00223792]
[1770007257975,4.389357,101.43,101.39,13.92223792]
[1770007258269,4.389357,101.44,101.4,4.27021785]
[1770007258643,4.389357,101.43,101.39,4.19021785]
[1770007259254,4.389357,101.42,101.39,4.19021785]
[1770007260269,4.389357,101.39,101.32,9.93202007]
[1770007260570,4.389357,101.34,101.32,0.2]
[1770007260866,4.389357,101.32,101.27,4.27021785]
[1770007261167,14.12137707,101.32,101.27,4.27021785]
[1770007261339,41.42729092,101.36,101.26,9.93202007]
[1770007261340,4.389357,101.28,101.26,0.2]
[1770007261546,14.12137707,101.27,101.24,0.2]
[1770007261740,4.389357,101.27,101.24,0.2]
[1770007262466,14.12137707,101.27,101.24,0.2]
[1770007262850,4.389357,101.24,101.19,4.27021785]
[1770007263056,14.12137707,101.24,101.19,4.27021785]
[1770007263368,4.389357,101.28,101.24,4.27021785]
[1770007263545,4.389357,101.28,101.24,14.00223792]
[1770007263746,9.73202007,101.3,101.2,9.73202007]
[1770007263747,4.389357,101.3,101.25,14.00223792]
[1770007264144,4.389357,101.26,101.21,9.73202007]
[1770007264361,14.12137707,101.25,101.2,4.27021785]
[1770007264665,9.73202007,101.24,101.2,4.27021785]
[1770007264848,9.73202007,101.23,101.18,85.88302564]
[1770007265170,9.73202007,101.23,101.19,4.27021785]
[1770007265365,14.12137707,101.23,101.19,4.27021785]
[1770007265748,4.389357,101.25,101.21,4.27021785]
[1770007265955,14.12137707,101.23,101.19,4.27021785]
[1770007266157,14.12137707,101.23,101.18,76.15100557]
[1770007266752,4.389357,101.22,101.18,76.15100557]
[1770007267153,4.389357,101.23,101.18,14.20223792]
[1770007267467,4.389357,101.23,101.19,4.27021785]
[1770007267851,14.12137707,101.23,101.19,4.27021785]
[1770007268469,4.389357,101.23,101.18,9.93202007]
[1770007268779,14.04602601,101.23,101.18,0.2]
[1770007268970,4.31400594,101.22,101.18,0.2]
[1770007269266,4.31400594,101.22,101.18,14.02742902]
[1770007269470,4.31400594,101.22,101.18,4.29540895]
[1770007269673,4.31400594,101.22,101.18,14.02742902]
[1770007269873,4.31400594,101.22,101.18,4.29540895]
[1770007270247,4.31400594,101.23,101.18,9.93202007]
[1770007270452,4.31400594,101.23,101.19,13.82742902]
[1770007271071,4.31400594,101.25,101.2,13.82742902]
[1770007271278,4.31400594,101.24,101.2,4.09540895]
[1770007272282,4.31400594,101.24,101.19,4.09540895]
[1770007272283,4.31400594,101.23,101.19,4.09540895]
[1770007272579,14.04602601,101.23,101.18,9.93202007]
[1770007272783,4.31400594,101.21,101.18,0.2]
[1770007272966,14.04602601,101.21,101.18,0.2]
[1770007273271,4.31400594,101.21,101.17,4.09540895]
[1770007273653,4.31400594,101.21,101.16,9.73202007]
[1770007273976,4.31400594,101.2,101.15,13.92742902]
[1770007274274,4.31400594,101.22,101.18,13.82742902]
[1770007274979,14.04602601,101.26,101.21,9.73202007]
[1770007275485,4.31400594,101.23,101.19,9.73202007]
[1770007275666,4.31400594,101.22,101.18,4.09540895]
[1770007275854,14.04602601,101.22,101.18,4.09540895]
[1770007276179,9.73202007,101.22,101.17,4.09540895]
[1770007276355,4.31400594,101.21,101.17,4.09540895]
[1770007276560,4.31400594,101.2,101.15,13.92742902]
[1770007276775,14.04602601,101.22,101.17,13.82742902]
[1770007277174,4.31400594,101.24,101.2,4.09540895]
[1770007277367,4.31400594,101.26,101.21,13.82742902]
[1770007277985,4.31400594,101.25,101.21,13.82742902]
[1770007278278,4.31400594,101.24,101.19,13.82742902]
[1770007280468,4.31400594,101.22,101.18,4.09540895]
[1770007281084,14.04602601,101.21,101.16,4.09540895]
[1770007281380,14.04602601,101.22,101.17,13.82742902]
[1770007281555,4.31400594,101.21,101.17,4.09540895]
[1770007282796,14.04602601,101.21,101.17,4.09540895]
[1770007283196,4.31400594,101.21,101.17,4.09540895]
[1770007283674,4.31400594,101.21,101.17,13.82742902]
[1770007284787,4.31400594,101.21,101.16,9.73202007]
[1770007284788,14.04602601,101.21,101.16,9.73202007]
[1770007285094,14.04602601,101.21,101.16,13.82742902]
[1770007285895,4.31400594,101.21,101.16,13.82742902]
[1770007286393,4.31400594,101.21,101.16,13.86554999]
[1770007286594,4.31400594,101.2,101.16,13.86554999]
[1770007286796,4.31400594,101.2,101.16,4.09540895]
[1770007287292,4.31400594,101.22,101.18,4.09540895]
[1770007287489,4.31400594,101.21,101.16,13.86554999]
[1770007290575,4.31400594,101.21,101.16,9.77014104]
[1770007290776,4.31400594,101.21,101.17,4.09540895]
[1770007291495,4.31400594,101.21,101.17,13.86554999]
[1770007291700,4.31400594,101.21,101.17,4.09540895]
[1770007292195,4.31400594,101.21,101.17,13.86554999]
[1770007293695,4.31400594,101.22,101.18,4.09540895]
[1770007294084,4.31400594,101.22,101.18,13.86554999]
[1770007295695,4.31400594,101.22,101.13,4.27527085]
[1770007295696,4.31400594,101.21,101.13,4.27527085]
[1770007295890,4.31400594,101.16,101.12,4.09540895]
[1770007296280,4.31400594,101.16,101.12,13.86554999]
[1770007296487,4.31400594,101.16,101.12,4.09540895]
[1770007296709,4.31400594,101.15,101.11,4.09540895]
[1770007296898,14.08414698,101.15,101.11,4.09540895]
[1770007297206,4.31400594,101.16,101.11,9.77014104]
[1770007297381,4.31400594,101.16,101.12,4.09540895]
[1770007297782,4.22156256,101.2,101.15,4.14622441]
[1770007297982,13.9917036,101.2,101.15,4.14622441]
[1770007298297,4.22156256,101.18,101.14,4.14622441]
[1770007298500,4.22156256,101.17,101.12,13.91636545]
[1770007298803,4.22156256,101.17,101.13,4.14622441]
[1770007299200,13.9917036,101.19,101.14,4.14622441]
[1770007299402,4.22156256,101.18,101.14,4.14622441]
[1770007300211,13.9917036,101.18,101.14,4.14622441]
[1770007300382,13.9917036,101.17,101.14,4.14622441]
[1770007300581,4.22156256,101.17,101.14,4.14622441]
[1770007301082,4.22156256,101.17,101.12,13.91636545]
[1770007301282,13.9917036,101.17,101.12,4.14622441]
[1770007302196,4.22156256,101.15,101.11,4.14622441]
[1770007302400,4.22156256,101.18,101.14,4.14622441]
[1770007302597,31.70156256,101.2,101.16,13.91636545]
[1770007302796,4.22156256,101.22,101.18,13.91636545]
[1770007303102,4.22156256,101.23,101.19,4.14622441]
[1770007303882,13.9917036,101.25,101.2,4.14622441]
[1770007304300,4.22156256,101.25,101.2,13.91636545]
[1770007306698,4.22156256,101.27,101.23,4.14622441]
[1770007306899,4.22156256,101.27,101.23,13.91636545]
[1770007307489,14.18893164,101.29,101.24,4.20270238]
[1770007307685,14.18893164,101.31,101.26,4.20270238]
[1770007307882,4.4187906,101.31,101.27,4.20270238]
[1770007308087,4.4187906,101.3,101.25,13.97284342]
[1770007308690,14.38893164,101.32,101.27,4.20270238]
[1770007308898,14.18893164,101.31,101.27,4.20270238]
[1770007310026,4.4187906,101.29,101.23,9.77014104]
[1770007310186,4.47527085,101.32,101.23,4.20270238]
[1770007310187,4.4187906,101.27,101.23,4.20270238]
[1770007310594,4.4187906,101.24,101.19,4.20270238]
[1770007310895,31.75527085,101.28,101.18,4.20270238]
[1770007310896,4.4187906,101.22,101.18,4.20270238]
[1770007312610,14.18893164,101.24,101.19,4.20270238]
[1770007312814,4.4187906,101.25,101.21,4.20270238]
[1770007314004,14.18893164,101.25,101.21,4.20270238]
[1770007314392,9.77014104,101.25,101.21,4.20270238]
[1770007314712,4.4187906,101.25,101.21,4.20270238]
[1770007315814,4.4187906,101.23,101.18,4.20270238]
[1770007316118,14.18893164,101.23,101.18,4.20270238]
[1770007316321,14.18893164,101.23,101.18,13.97284342]
[1770007317022,14.18893164,101.23,101.19,4.20270238]
[1770007318722,14.18893164,101.23,101.18,13.97284342]
[1770007319018,14.18893164,101.23,101.17,4.20270238]
[1770007319221,14.18893164,101.23,101.18,4.20270238]
[1770007319523,4.4187906,101.23,101.19,4.20270238]
[1770007320924,14.18893164,101.24,101.2,4.20270238]
[1770007321123,4.4187906,101.28,101.24,4.20270238]
[1770007321428,4.4187906,101.3,101.25,13.97284342]
[1770007321625,4.4187906,101.3,101.26,4.20270238]
[1770007321806,0.2,101.32,101.28,13.97284342]
[1770007321807,4.6187906,101.32,101.28,13.97284342]
[1770007322218,4.4187906,101.34,101.3,13.97284342]
[1770007322401,4.4187906,101.36,101.31,13.97284342]
[1770007322603,4.4187906,101.36,101.32,13.97284342]
[1770007323018,4.4187906,101.35,101.3,13.97284342]
[1770007323227,4.4187906,101.35,101.31,13.97284342]
[1770007323600,14.18893164,101.37,101.31,13.97284342]
[1770007323805,4.4187906,101.36,101.31,13.97284342]
[1770007324427,4.4187906,101.37,101.33,4.20270238]
[1770007324608,4.4187906,101.37,101.33,13.97284342]
[1770007324809,4.4187906,101.37,101.31,13.97284342]
[1770007324810,4.4187906,101.36,101.31,13.97284342]
[1770007325022,14.18893164,101.36,101.31,4.20270238]
[1770007325227,4.4187906,101.36,101.31,13.97284342]
[1770007325414,14.18893164,101.36,101.31,4.20270238]
[1770007325610,4.4187906,101.36,101.31,13.97284342]
[1770007327906,4.39454381,101.33,101.28,9.77014104]
[1770007328108,4.39454381,101.32,101.27,14.10619003]
[1770007328307,4.39454381,101.32,101.28,4.33604899]
[1770007328808,4.39454381,101.31,101.26,14.10619003]
[1770007329132,4.39454381,101.31,101.27,4.33604899]
[1770007329309,14.16468485,101.32,101.27,4.33604899]
[1770007329724,14.16468485,101.32,101.26,9.77014104]
[1770007329921,4.27527085,101.35,101.23,18.28146088]
[1770007329922,4.39454381,101.34,101.23,18.28146088]
[1770007330142,4.39454381,101.34,101.29,9.77014104]
[1770007330304,4.39454381,101.36,101.31,9.77014104]
[1770007330507,14.16468485,101.35,101.29,9.77014104]
[1770007330720,14.16468485,101.35,101.3,9.77014104]
[1770007330721,4.39454381,101.35,101.3,9.77014104]
[1770007331411,4.39454381,101.35,101.31,9.77014104]
[1770007331819,4.39454381,101.35,101.3,9.77014104]
[1770007332207,9.77014104,101.35,101.29,14.10619003]
[1770007332410,4.39454381,101.34,101.29,14.10619003]
[1770007332605,4.39454381,101.34,101.29,4.33604899]